bitfinex-derivatives/quotes_ETHF0:USTF0_20250816
["timestamp","ask_amount","ask_price","bid_price","bid_amount"]
[1755306003942,3.2078,4481.5,4481.1,1.0523]
[1755306004147,0.2601,4481.4,4481.1,1.4462]
[1755306004340,0.7026,4481.2,4481.1,1.4462]
[1755306004541,0.2601,4481.1,4480.5,0.3939]
[1755306004742,1.4872,4480.6,4480.5,0.6535]
[1755306005452,0.8555,4479.8,4479.7,0.819]
[1755306005651,1.4872,4479.8,4479.7,0.6535]
[1755306005952,1.4872,4479.8,4479.7,0.4142]
[1755306006149,1.4872,4479.8,4479.3,0.2333]
[1755306006347,0.5954,4479.5,4479.4,1.0474]
[1755306006648,1.2325,4479.5,4479.4,1.0474]
[1755306006952,1.2325,4479.5,4478.4,3.2078]
[1755306006953,1.2271,4479.2,4479.1,0.4142]
[1755306007146,0.8501,4479.2,4478.7,0.2424]
[1755306007456,0.8501,4479.2,4478.7,1.0474]
[1755306007457,1.2325,4478.8,4478.7,1.0474]
[1755306007647,1.2325,4478.8,4478.7,1.4462]
[1755306008742,1.2325,4478.8,4478.7,1.2129]
[1755306008946,1.4872,4478.8,4478.7,1.0474]
[1755306009149,0.3425,4478.5,4478.4,0.2424]
[1755306009345,1.4872,4478.5,4478.4,0.2424]
[1755306009742,1.4872,4478.5,4478.4,0.4142]
[1755306010645,0.8501,4478.5,4478.0,0.2424]
[1755306010851,1.2325,4478.1,4478.0,1.4462]
[1755306011251,0.8555,4478.1,4478.0,1.4462]
[1755306011955,1.2325,4478.1,4478.0,1.4462]
[1755306014151,0.6026,4478.9,4478.8,0.1718]
[1755306014457,1.4872,4478.9,4478.8,1.0474]
[1755306015956,0.5954,4478.4,4478.3,0.9705]
[1755306016159,0.8555,4478.4,4478.3,1.2039]
[1755306016358,1.2325,4478.4,4478.3,1.2039]
[1755306016563,1.2325,4478.4,4478.3,1.4463]
[1755306018456,1.48,4478.4,4478.3,0.4142]
[1755306018656,1.48,4478.4,4478.3,0.6526]
[1755306018856,0.1675,4478.4,4478.3,0.4142]
[1755306019062,1.4535,4478.4,4478.0,0.3911]
[1755306019253,0.564,4478.2,4478.1,0.2482]
[1755306019558,1.4535,4478.2,4478.1,0.4148]
[1755306019762,1.4535,4478.2,4478.1,1.2095]
[1755306020060,0.422,4478.4,4478.3,0.5702]
[1755306020255,0.9515,4478.4,4478.3,1.4427]
[1755306020561,0.9515,4478.4,4478.3,1.2095]
[1755306020764,1.206,4478.4,4478.3,1.4427]
[1755306021458,0.422,4478.4,4478.3,1.4427]
[1755306022459,1.206,4478.4,4478.3,1.2095]
[1755306022651,1.4535,4478.4,4478.3,1.2095]
[1755306023959,1.4535,4478.4,4478.3,1.0443]
[1755306025157,0.642,4478.3,4478.0,3.456]
[1755306025357,1.4535,4478.1,4477.3,3.38331913]
[1755306025553,1.4535,4477.4,4477.3,3.2078]
[1755306025958,1.4535,4477.4,4477.3,3.861]
[1755306026165,0.422,4477.4,4477.3,4.6505]
[1755306027860,0.8185,4477.4,4477.3,4.4173]
[1755306028066,1.206,4477.4,4477.3,4.6505]
[1755306029866,0.8185,4477.5,4477.4,1.4427]
[1755306030164,1.206,4477.5,4477.4,1.4427]
[1755306031461,0.2545,4477.4,4476.8,3.2078]
[1755306031663,1.206,4477.0,4476.9,1.0443]
[1755306031862,1.4535,4477.0,4476.9,1.0443]
[1755306032065,1.206,4477.0,4476.9,1.4427]
[1755306032664,1.4535,4477.0,4476.9,1.0443]
[1755306032966,0.564,4476.5,4476.4,0.8184]
[1755306033166,1.4535,4476.5,4476.4,1.2095]
[1755306033358,0.564,4476.1,4476.0,0.8184]
[1755306033568,1.206,4476.1,4476.0,1.2095]
[1755306034072,0.3254,4475.9,4475.8,0.2482]
[1755306034262,0.564,4475.4,4475.3,1.2095]
[1755306034568,1.206,4475.4,4475.3,1.4427]
[1755306035061,0.3254,4475.1,4475.0,0.3318]
[1755306035264,1.206,4475.1,4475.0,1.2095]
[1755306035460,0.3254,4474.8,4474.7,3.456]
[1755306035661,0.502,4474.7,4474.3,0.2482]
[1755306035862,1.4535,4474.4,4474.3,1.0443]
[1755306036170,3.27554808,4474.4,4474.2,3.2078]
[1755306036363,1.4535,4474.3,4474.2,3.2078]
[1755306036667,2.71154808,4474.4,4473.8,0.17635135]
[1755306036668,1.4535,4473.9,4473.8,0.17635135]
[1755306036858,1.4535,4473.9,4473.3,0.2482]
[1755306037060,0.564,4473.4,4473.3,0.8184]
[1755306037270,0.8185,4473.4,4473.3,1.4427]
[1755306037866,0.8185,4473.4,4473.3,1.2095]
[1755306038167,0.564,4473.4,4473.3,1.2095]
[1755306038366,0.564,4473.4,4473.3,1.4427]
[1755306038562,0.8185,4473.4,4473.3,1.2095]
[1755306038763,1.206,4473.4,4473.3,1.2095]
[1755306038959,1.4535,4473.4,4473.3,1.2095]
[1755306039260,0.1579,4473.2,4473.1,3.55660025]
[1755306039466,0.642,4473.9,4473.1,4.51790025]
[1755306039661,0.2475,4473.9,4473.2,0.2482]
[1755306039870,0.422,4473.3,4473.2,1.0516]
[1755306040062,3.2078,4474.0,4473.2,0.5702]
[1755306040270,0.564,4473.2,4473.1,3.30840025]
[1755306040468,1.4535,4473.2,4473.1,0.10060025]
[1755306040668,0.564,4472.5,4472.4,3.6128]
[1755306040868,0.6606,4472.5,4472.4,4.6626]
[1755306041069,0.422,4472.5,4472.4,4.6626]
[1755306041272,0.1675,4472.5,4472.4,4.6626]
[1755306041576,1.206,4472.8,4472.7,1.4548]
[1755306042165,0.564,4472.5,4472.4,3.2078]
[1755306042367,1.199,4472.5,4472.4,3.861]
[1755306043273,1.199,4472.5,4472.4,3.2078]
[1755306043472,0.3254,4472.0,4471.9,0.8184]
[1755306043774,0.3254,4472.0,4471.9,1.4548]
[1755306043775,0.9515,4472.0,4471.9,1.4548]
[1755306044167,1.206,4472.0,4471.9,1.4548]
[1755306044369,1.0385,4471.9,4471.8,0.4866]
[1755306044663,1.206,4471.9,4471.8,1.2095]
[1755306045468,1.4535,4471.9,4471.8,1.2095]
[1755306045668,1.4535,4471.9,4471.8,0.6532]
[1755306045863,1.4535,4471.9,4471.7,3.2078]
[1755306046069,0.564,4471.9,4471.7,3.2078]
[1755306046275,1.4535,4471.8,4471.7,3.2078]
[1755306046572,1.4535,4471.8,4471.7,0.4148]
[1755306046966,1.4535,4471.8,4471.7,0.6532]
[1755306048969,0.3239,4471.2,4471.1,0.9494]
[1755306049176,1.2251,4471.2,4471.1,1.4492]
[1755306049565,0.4117,4471.2,4471.1,1.4492]
[1755306049978,0.1623,4471.2,4471.1,1.4492]
[1755306050471,2.71154808,4472.4,4471.0,3.2078]
[1755306050667,0.8364,4471.1,4471.0,3.7926]
[1755306050866,0.8364,4471.1,4471.0,4.0387]
[1755306051071,0.1623,4471.1,4471.0,4.0387]
[1755306051268,1.2251,4471.1,4470.5,0.2456]
[1755306051471,0.587,4471.1,4471.0,0.5848]
[1755306051674,0.8426,4471.1,4471.0,0.6693]
[1755306051868,0.587,4471.1,4471.0,1.4492]
[1755306052069,0.6381,4471.5,4470.5,0.4917]
[1755306052267,0.1623,4470.8,4470.7,1.0255]
[1755306052467,0.1623,4470.8,4470.7,1.4492]
[1755306052669,0.8364,4471.2,4471.1,0.5848]
[1755306052873,1.2251,4471.2,4471.1,1.4492]
[1755306053470,1.2251,4471.3,4471.2,1.4492]
[1755306053978,1.4807,4471.3,4471.2,1.2031]
[1755306054180,1.2251,4471.3,4471.2,1.4492]
[1755306054368,1.2251,4471.3,4470.5,0.69264]
[1755306054573,0.9757,4471.3,4471.2,0.4237]
[1755306054773,0.9757,4471.3,4471.2,1.4492]
[1755306055176,1.2251,4471.3,4471.2,1.4492]
[1755306055481,0.8364,4471.3,4471.2,1.4492]
[1755306056274,2.71154808,4472.3,4471.2,1.2036]
[1755306056586,1.2251,4471.9,4471.8,0.5848]
[1755306056784,1.2251,4471.9,4471.8,1.4492]
[1755306057477,3.3694,4472.0,4471.9,1.0255]
[1755306057684,0.2556,4471.9,4471.7,0.2456]
[1755306057881,0.8426,4471.8,4471.7,0.4156]
[1755306058073,1.4807,4471.8,4471.7,0.4156]
[1755306058572,1.2251,4471.8,4471.7,1.4492]
[1755306059878,1.2251,4471.8,4470.9,3.6548]
[1755306060078,1.2176,4471.7,4471.6,0.17]
[1755306060285,1.4807,4471.7,4471.6,1.042]
[1755306060681,3.6195,4472.0,4471.9,0.5848]
[1755306060880,3.82325525,4472.0,4471.9,1.4492]
[1755306061078,0.8937,4471.9,4471.2,0.8644]
[1755306061281,0.8937,4471.9,4471.3,0.6183]
[1755306061282,1.20245525,4471.8,4471.3,0.6183]
[1755306061484,0.587,4471.5,4471.4,0.6693]
[1755306061680,0.587,4471.5,4471.3,0.3727]
[1755306061681,1.4807,4471.3,4471.2,0.6693]
[1755306061880,1.4807,4471.3,4471.2,1.042]
[1755306062080,2.09799348,4471.3,4471.2,1.042]
[1755306062277,2.09799348,4471.3,4471.2,0.6693]
[1755306062483,2.09799348,4471.3,4471.2,0.4156]
[1755306062787,2.09799348,4471.3,4471.2,1.042]
[1755306063281,0.61729348,4471.3,4471.2,1.4492]
[1755306063484,1.02899348,4471.3,4471.2,1.4492]
[1755306063683,1.84239348,4471.3,4471.2,1.4492]
[1755306064282,2.07246856,4471.3,4471.2,1.4492]
[1755306065984,1.84239348,4471.3,4471.2,1.4492]
[1755306066481,1.84239348,4471.3,4471.2,1.2031]
[1755306066687,2.09799348,4471.3,4471.2,1.2031]
[1755306066888,0.7997,4471.2,4471.1,0.3311]
[1755306067091,0.7997,4471.2,4471.1,1.4492]
[1755306067092,1.84239348,4471.2,4471.1,1.4492]
[1755306067388,1.02899348,4471.2,4471.1,1.4492]
[1755306067581,0.61729348,4471.2,4470.9,3.2078]
[1755306067784,0.77959348,4471.1,4471.0,0.8309]
[1755306067984,1.02899348,4471.1,4471.0,1.2036]
[1755306068187,0.77959348,4471.1,4471.0,1.4492]
[1755306068582,1.02899348,4471.1,4471.0,1.4492]
[1755306068779,0.61729348,4471.1,4471.0,0.7964]
[1755306068979,1.45369348,4471.1,4471.0,1.4492]
[1755306071494,0.835026,4471.1,4471.0,1.4492]
[1755306071686,0.61729348,4471.1,4471.0,1.4492]
[1755306073589,0.61729348,4471.1,4471.0,1.8962]
[1755306076588,3.2078,4472.7,4472.0,0.44689]
[1755306076788,3.2078,4472.7,4471.1,1.11747]
[1755306076789,4.6885,4472.7,4472.6,0.2537]
[1755306077095,0.587,4472.4,4472.3,0.7964]
[1755306077297,1.61372621,4472.4,4472.3,0.7964]
[1755306077685,1.61372621,4472.4,4472.3,0.9212]
[1755306077892,1.61372621,4472.4,4472.3,0.9992]
[1755306078196,1.61372621,4472.4,4472.3,1.2448]
[1755306078993,0.96192621,4472.4,4472.3,1.2448]
[1755306079199,1.4517,4472.4,4472.3,1.2448]
[1755306080190,1.4517,4472.4,4472.3,0.2537]
[1755306080587,1.4517,4472.4,4472.3,0.8133]
[1755306080790,1.4517,4472.4,4472.3,1.273]
[1755306082096,0.6663,4472.4,4472.3,1.273]
[1755306082297,1.08,4472.4,4472.3,1.273]
[1755306082996,1.08,4472.4,4472.0,3.2078]
[1755306082997,0.1647,4472.1,4472.0,3.2078]
[1755306083202,0.1647,4472.1,4472.0,0.2514]
[1755306083203,1.4609,4472.1,4472.0,0.2514]
[1755306083603,0.335,4471.2,4471.1,3.578]
[1755306083805,1.4609,4471.2,4471.1,4.0895]
[1755306084198,1.0872,4471.2,4471.1,4.0895]
[1755306084404,1.0872,4471.2,4471.1,4.4785]
[1755306084900,1.0872,4471.7,4471.6,0.422]
[1755306085203,1.4609,4471.7,4471.6,0.9338]
[1755306085405,1.4609,4471.7,4471.6,1.2707]
[1755306085700,0.5031,4472.1,4471.7,0.3369]
[1755306085903,0.5031,4472.1,4471.6,6.46414808]
[1755306085904,0.9578,4472.8,4472.7,0.422]
[1755306086101,1.09057382,4472.8,4472.7,0.422]
[1755306086601,1.59367382,4472.8,4472.7,0.422]
[1755306087201,1.4609,4472.8,4472.7,0.422]
[1755306088007,1.4609,4472.8,4472.7,0.9338]
[1755306088207,1.4609,4472.8,4472.7,0.811]
[1755306088402,0.5031,4473.1,4472.7,3.21904808]
[1755306088604,0.2434,4473.5,4473.4,0.422]
[1755306088804,0.8381,4473.7,4473.6,0.5448]
[1755306089001,0.8381,4473.7,4473.6,1.2707]
[1755306089203,0.8381,4473.7,4473.6,1.71744]
[1755306089506,0.335,4473.4,4473.3,0.6824]
[1755306089705,1.4609,4473.4,4473.3,0.9338]
[1755306089904,1.4609,4473.4,4473.3,0.811]
[1755306091305,0.5841,4473.1,4473.0,3.2078]
[1755306091506,1.4609,4472.4,4472.3,5.56625405]
[1755306091707,1.4609,4472.4,4472.3,0.811]
[1755306092305,3.2078,4473.8,4472.3,1.2707]
[1755306092505,0.335,4473.2,4473.1,0.6824]
[1755306092711,0.8381,4473.2,4473.1,1.2707]
[1755306093412,1.0872,4473.2,4473.1,1.2707]
[1755306093606,1.4609,4473.2,4473.1,0.811]
[1755306093808,1.4609,4473.2,4473.1,0.422]
[1755306094211,1.4609,4473.2,4473.1,0.811]
[1755306095014,1.4609,4473.2,4473.1,0.9338]
[1755306095409,1.0415,4473.1,4473.0,0.422]
[1755306095615,1.4609,4473.1,4473.0,0.811]
[1755306095909,0.8275,4473.5,4473.4,0.422]
[1755306096109,1.4609,4473.5,4473.4,0.811]
[1755306096411,0.1,4474.2,4473.1,3.2078]
[1755306096412,0.335,4473.2,4473.1,3.2078]
[1755306096611,0.5841,4473.2,4472.6,0.389]
[1755306096909,3.4675,4473.8,4473.2,0.2514]
[1755306097216,1.4609,4473.4,4472.9,0.389]
[1755306097411,0.8768,4473.3,4473.0,0.389]
[1755306097717,1.4609,4473.1,4473.0,0.811]
[1755306098210,1.4609,4473.1,4472.5,2.00301187]
[1755306098409,1.4609,4473.0,4472.6,0.389]
[1755306098609,0.5841,4472.7,4472.6,0.811]
[1755306098809,1.4609,4472.7,4472.6,0.811]
[1755306099010,1.4609,4472.7,4472.6,1.2707]
[1755306099404,1.0872,4472.7,4472.6,1.2707]
[1755306100218,3.2078,4473.8,4472.6,0.5448]
[1755306100416,1.0872,4472.8,4472.7,1.2707]
[1755306100714,1.4609,4472.8,4472.7,0.9338]
[1755306101112,1.4609,4472.8,4472.7,0.811]
[1755306101810,1.0872,4472.6,4471.8,3.2078]
[1755306102015,0.2434,4473.0,4472.5,3.2078]
[1755306102317,1.4609,4473.7,4473.6,0.811]
[1755306102516,1.4609,4473.7,4473.6,0.9338]
[1755306102812,0.1,4474.2,4473.3,0.5596]
[1755306103005,0.8381,4473.4,4473.3,1.2707]
[1755306103204,0.8381,4473.4,4473.3,1.1939]
[1755306103412,1.4609,4473.4,4472.9,0.389]
[1755306103714,7.7877381,4474.1,4472.8,1.2707]
[1755306103715,1.4609,4472.9,4472.8,1.2707]
[1755306104416,1.0872,4472.9,4472.8,1.2707]
[1755306105308,0.8381,4472.9,4472.8,1.2707]
[1755306105505,0.2597,4473.8,4472.8,0.7259]
[1755306105715,0.2597,4473.8,4473.7,1.1939]
[1755306105716,1.4609,4473.8,4473.7,1.1939]
[1755306105913,1.4609,4473.8,4473.7,0.9338]
[1755306106113,1.4609,4473.8,4473.7,0.811]
[1755306106411,1.4609,4473.8,4473.7,0.2514]
[1755306106713,0.335,4473.5,4473.4,0.5596]
[1755306106917,0.1,4474.2,4474.1,0.5448]
[1755306107112,0.1,4474.2,4474.1,4.4785]
[1755306108718,0.3576,4474.2,4474.1,4.4785]
[1755306109222,0.5183,4474.2,4474.1,4.4785]
[1755306109428,0.9266,4474.2,4474.1,4.4785]
[1755306109623,0.1,4474.2,4474.1,7.4785]
[1755306109811,1.0846,4475.2,4475.1,0.926]
[1755306110012,1.0846,4475.2,4475.1,1.2613]
[1755306111524,1.455,4475.2,4475.1,1.2613]
[1755306111717,1.455,4475.2,4475.1,0.926]
[1755306112120,1.455,4475.2,4475.1,0.803]
[1755306112520,1.455,4475.2,4475.1,0.4203]
[1755306112713,1.455,4475.2,4475.1,0.2482]
[1755306112917,0.5832,4474.9,4474.8,0.803]
[1755306113223,1.455,4474.9,4474.8,0.803]
[1755306113425,0.5832,4474.4,4474.3,0.926]
[1755306113621,1.455,4474.4,4474.3,0.926]
[1755306114427,1.455,4474.4,4474.3,1.1844]
[1755306115021,1.455,4474.4,4474.3,0.803]
[1755306116320,0.5832,4474.0,4473.9,2.42331187]
[1755306116520,0.5832,4474.0,4473.9,0.4203]
[1755306116521,1.455,4474.0,4473.9,0.4203]
[1755306117918,7.7877381,4474.7,4473.6,0.718]
[1755306117919,0.827,4474.7,4474.6,0.1721]
[1755306118124,1.1974,4474.7,4474.6,0.803]
[1755306118529,0.827,4474.7,4474.6,0.926]
[1755306118819,1.455,4474.7,4474.6,0.803]
[1755306119123,1.455,4474.1,4474.0,0.803]
[1755306119825,1.455,4474.1,4474.0,0.926]
[1755306120024,1.455,4474.1,4474.0,1.2613]
[1755306120224,0.2576,4474.5,4474.0,0.8786]
[1755306120525,8.735,4477.1,4474.0,0.8786]
[1755306120526,3.2078,4475.5,4475.3,0.6304]
[1755306120726,3.2078,4475.5,4475.4,1.2613]
[1755306120918,0.2438,4475.8,4475.4,1.2613]
[1755306120919,0.3704,4475.7,4475.4,0.3827]
[1755306121121,0.8266,4475.5,4475.4,0.926]
[1755306121317,0.2576,4475.4,4473.0,8.45978055]
[1755306121518,0.0796,4473.6,4472.4,0.2584]
[1755306121723,3.4148,4473.2,4472.4,0.2584]
[1755306121924,3.4148,4473.2,4473.1,0.02100025]
[1755306122230,6.67192139,4473.2,4473.1,0.02100025]
[1755306122623,14.46542199,4473.2,4473.1,0.02100025]
[1755306125524,14.48917848,4473.2,4473.1,0.02100025]
[1755306125729,14.54198755,4473.2,4471.0,0.4976]
[1755306125929,3.2078,4471.4,4471.3,1.4654]
[1755306127023,3.2078,4471.4,4471.3,1.0827]
[1755306127223,3.2078,4471.4,4471.3,1.4654]
[1755306129724,3.2078,4471.4,4470.6,0.44703]
[1755306130031,3.2078,4471.4,4471.3,1.4654]
[1755306132134,3.2078,4472.0,4471.9,1.4654]
[1755306133533,3.2078,4472.0,4470.4,1.11763]
[1755306133534,3.2078,4472.0,4471.2,0.6219]
[1755306133731,3.2078,4472.0,4471.4,0.2392]
[1755306133927,3.2078,4472.0,4471.6,0.6219]
[1755306134233,3.2078,4472.0,4471.7,0.5851]
[1755306134436,3.2078,4472.0,4471.8,1.4654]
[1755306134734,3.2078,4472.0,4471.9,1.4654]
[1755306139032,3.2078,4472.0,4471.6,0.2521]
[1755306139226,3.2159,4472.0,4471.9,1.4505]
[1755306141036,3.2078,4472.0,4471.9,1.4505]
[1755306141537,3.2159,4472.0,4471.9,1.4505]
[1755306142741,5.81424729,4472.0,4471.9,1.4505]
[1755306144034,5.81424729,4472.0,4471.6,0.2521]
[1755306144240,0.005,4471.8,4470.7,0.6331]
[1755306144540,5.81924729,4471.0,4470.9,1.4505]
[1755306144928,5.81924729,4471.0,4470.9,1.0667]
[1755306145133,5.81924729,4471.0,4470.9,1.4505]
[1755306148139,5.81424729,4471.0,4470.9,1.4505]
[1755306149236,6.11549888,4471.0,4470.9,1.4505]
[1755306149434,2.59834729,4471.4,4470.9,1.4505]
[1755306149741,0.291186,4471.3,4471.2,1.4505]
[1755306149936,3.2078,4471.6,4471.5,0.3259]
[1755306150136,3.4989706,4471.6,4471.5,1.0667]
[1755306150337,3.4989706,4471.6,4471.5,1.4505]
[1755306150642,3.2078,4471.6,4471.5,1.4505]
[1755306150941,3.2159,4471.6,4471.5,1.4505]
[1755306151142,3.2209,4471.6,4471.5,1.4505]
[1755306152042,3.2078,4471.6,4471.5,1.4505]
[1755306154842,3.47180433,4471.6,4471.5,1.4505]
[1755306155245,3.47990433,4471.6,4471.5,1.4505]
[1755306155638,3.48490433,4471.6,4471.5,0.5014]
[1755306155945,3.48490433,4471.6,4471.5,1.4505]
[1755306157541,3.2209,4471.6,4471.5,1.4505]
[1755306160346,5.80614729,4471.6,4471.5,0.2521]
[1755306160549,5.81424729,4471.6,4471.5,0.4025]
[1755306160744,5.81424729,4471.6,4471.5,1.4505]
[1755306161254,5.81924729,4471.6,4471.5,1.4505]
[1755306163251,5.81924729,4471.6,4471.5,0.2521]
[1755306163439,0.0081,4471.0,4470.9,0.8174]
[1755306163645,3.2078,4471.0,4470.9,1.4505]
[1755306164951,2.61144729,4471.4,4471.3,0.4149]
[1755306165149,2.61144729,4471.4,4471.3,0.8273]
[1755306165354,2.61144729,4471.4,4471.3,1.4505]
[1755306165549,3.2078,4471.5,4471.4,1.4505]
[1755306165753,3.59199451,4471.5,4471.4,1.4505]
[1755306166149,3.59699514,4471.5,4471.4,1.4505]
[1755306166764,3.2078,4471.5,4471.4,1.4505]
[1755306167853,3.2078,4472.1,4472.0,1.0667]
[1755306168050,3.2078,4472.1,4472.0,1.4505]
[1755306168250,3.2087,4472.1,4472.0,1.4505]
[1755306168461,3.2096,4472.1,4472.0,1.4505]
[1755306168755,3.2119,4472.1,4472.0,1.4505]
[1755306170453,3.2078,4472.1,4472.0,1.4505]
[1755306170653,0.1,4474.2,4473.1,0.5742]
[1755306170654,3.2078,4473.2,4473.1,0.5742]
[1755306170956,3.2078,4473.2,4473.1,1.4227]
[1755306171462,3.2078,4473.2,4473.1,1.0633]
[1755306171957,3.2078,4473.2,4473.1,1.4227]
[1755306175463,5.80614729,4473.2,4472.5,0.244]
[1755306175664,2.59834729,4472.6,4472.5,0.244]
[1755306176463,2.59834729,4472.6,4471.8,1.0633]
[1755306176762,3.2078,4472.1,4472.0,0.6568]
[1755306176961,3.2078,4472.1,4472.0,1.4227]
[1755306177864,3.2078,4472.7,4472.6,1.4227]
[1755306182463,3.2078,4472.7,4472.6,0.244]
[1755306182864,3.2078,4472.7,4472.1,0.2451]
[1755306182865,3.2078,4472.7,4472.1,0.4891]
[1755306183060,5.80614729,4472.2,4471.7,0.8193]
[1755306183255,5.80614729,4472.2,4471.9,0.244]
[1755306183661,5.80614729,4472.2,4472.0,0.244]
[1755306183859,5.80614729,4472.2,4471.7,0.244]
[1755306184067,5.80614729,4472.2,4471.4,0.6034]
[1755306184068,2.59834729,4472.1,4471.4,0.6034]
[1755306184262,3.2078,4471.9,4471.8,1.0633]
[1755306184467,3.2078,4471.9,4471.8,1.4227]
[1755306184666,3.2078,4471.9,4471.8,1.0633]
[1755306185061,3.2078,4471.9,4471.8,1.4227]
[1755306185463,3.2078,4471.9,4471.8,0.244]
[1755306185668,3.2078,4471.9,4471.2,0.5271]
[1755306185869,2.59834729,4471.8,4471.4,0.6926]
[1755306186166,2.59834729,4471.8,4471.7,0.244]
[1755306186766,2.59834729,4471.8,4471.7,0.8223]
[1755306187068,2.59834729,4471.8,4471.7,1.4227]
[1755306187773,3.2078,4471.9,4471.7,1.4227]
[1755306187962,3.2078,4471.9,4471.1,0.44698]
[1755306187963,3.2078,4471.9,4471.8,1.4227]
[1755306188364,3.2078,4471.9,4471.8,0.244]
[1755306188668,3.2078,4471.9,4471.5,0.5783]
[1755306188868,2.59834729,4471.6,4471.5,1.0633]
[1755306189569,2.59834729,4471.6,4471.5,1.4227]
[1755306191975,3.2078,4471.9,4471.5,1.4227]
[1755306192167,3.2078,4471.9,4471.7,0.7301]
[1755306192361,3.2078,4471.9,4471.8,0.4891]
[1755306192573,3.2078,4471.9,4471.8,1.4227]
[1755306193369,5.80614729,4471.9,4471.8,0.244]
[1755306193574,5.80614729,4471.9,4471.3,0.5271]
[1755306193762,5.80614729,4471.9,4471.4,0.8182]
[1755306193967,5.80614729,4471.9,4471.6,0.8223]
[1755306194168,3.2078,4471.9,4471.8,1.4227]
[1755306198481,3.2102,4471.9,4471.8,1.4227]
[1755306198781,3.2112,4471.9,4471.8,1.4227]
[1755306201085,3.2078,4471.9,4471.8,1.4227]
[1755306201486,3.2097,4471.9,4471.8,1.4227]
[1755306201987,3.2121,4471.9,4471.8,1.4227]
[1755306208383,0.0009,4471.8,4470.7,0.26]
[1755306208583,3.2087,4470.8,4470.7,1.4409]
[1755306208785,3.2078,4470.8,4470.7,1.4409]
[1755306216396,5.81044729,4470.8,4470.7,0.26]
[1755306217190,5.81044729,4470.8,4470.7,0.5082]
[1755306218191,5.81044729,4470.8,4470.7,0.6789]
[1755306220792,5.81044729,4470.8,4470.7,1.4409]
[1755306223897,3.2097,4470.8,4470.7,1.0763]
[1755306224099,5.81044729,4470.8,4470.7,1.4409]
[1755306225096,3.2078,4470.8,4470.7,1.4409]
[1755306225497,3.2087,4470.8,4470.7,1.4409]
[1755306225692,3.2121,4470.8,4470.7,1.4409]
[1755306228405,3.2078,4470.8,4470.7,1.4409]
[1755306236908,3.2078,4470.8,4470.7,1.0763]
[1755306238010,3.2078,4470.8,4470.7,0.26]
[1755306239512,3.2078,4470.8,4470.7,0.5211]
[1755306240414,3.2078,4470.8,4470.7,1.2038]
[1755306240615,3.2078,4470.8,4470.7,1.4416]
[1755306241010,3.2078,4470.8,4470.7,0.26]
[1755306241204,3.2078,4470.8,4470.7,1.4416]
[1755306241408,3.34025071,4470.8,4470.7,1.4416]
[1755306242511,3.34025071,4470.8,4470.7,1.0791]
[1755306243115,3.58451838,4470.8,4470.7,1.0791]
[1755306243311,3.58451838,4470.8,4470.2,0.5201]
[1755306243504,5.80614729,4470.3,4469.8,0.3202]
[1755306243709,0.37671838,4470.2,4470.0,0.259]
[1755306243912,0.37671838,4470.1,4470.0,0.259]
[1755306244817,2.97506567,4470.1,4470.0,0.5201]
[1755306245011,2.97506567,4470.1,4470.0,0.6806]
[1755306245214,2.97506567,4470.1,4470.0,1.4406]
[1755306245913,3.2078,4470.3,4470.2,1.4406]
[1755306246112,6.1825245,4470.3,4470.2,1.0781]
[1755306246518,6.1825245,4470.3,4469.2,0.44716]
[1755306246720,3.2078,4469.8,4469.7,1.4406]
[1755306247818,5.80614729,4469.8,4469.7,1.4406]
[1755306253825,5.80614729,4469.8,4469.7,0.6806]
[1755306254128,5.80614729,4469.8,4469.7,0.259]
[1755306254327,5.80614729,4469.8,4469.7,0.5201]
[1755306254526,5.80614729,4469.8,4469.7,1.4406]
[1755306255429,5.80614729,4470.4,4470.3,0.558]
[1755306255915,6.22764729,4470.4,4470.3,0.558]
[1755306256116,6.75924729,4470.4,4470.3,0.558]
[1755306256321,7.01614729,4470.4,4470.3,0.558]
[1755306257326,7.01614729,4470.4,4470.3,1.4406]
[1755306257528,7.25754729,4470.4,4470.3,1.4406]
[1755306257826,6.40134729,4470.4,4470.3,1.4406]
[1755306259328,3.2078,4470.4,4470.3,1.4406]
[1755306259921,3.2078,4471.2,4470.8,0.44701]
[1755306260223,3.2078,4471.2,4471.1,1.4763]
[1755306260729,3.2078,4471.2,4471.1,1.65218395]
[1755306261328,3.2078,4471.2,4471.1,1.4763]
[1755306261532,0.2447,4472.7,4472.1,0.8817]
[1755306261730,1.0851,4472.8,4472.7,0.6926]
[1755306262033,1.4729,4472.8,4472.7,0.8805]
[1755306262323,0.2566,4472.7,4471.7,0.211]
[1755306262524,15.727,4473.7,4472.1,0.1698]
[1755306262525,3.18214729,4472.2,4472.1,0.1698]
[1755306262721,3.18214729,4472.2,4471.8,0.1879]
[1755306262920,6.38994729,4471.9,4471.8,0.7756]
[1755306263118,7.27904729,4471.9,4471.8,0.8805]
[1755306264326,3.2078,4471.9,4471.8,0.9866]
[1755306264524,0.2566,4471.9,4471.8,0.9866]
[1755306264726,1.4729,4471.9,4471.8,0.8805]
[1755306268226,0.2566,4471.9,4471.8,0.9876]
[1755306269128,1.4729,4471.9,4471.8,0.8805]
[1755306269431,0.4289,4471.9,4471.8,0.9876]
[1755306269727,0.2566,4471.9,4471.8,0.9876]
[1755306270638,3.2078,4472.1,4472.0,0.8862]